Cogmind - Beta 13 @@@ ROGUE MODE // 2024.04.21 @ 11:36:43 Player: Strawberry Result: Destroyed by H-55 Commando with Gauss Rifle Performance ------------- Evolutions (3) 1500 Regions Visited (4) 800 Robots Destroyed (61) 305 Value Destroyed (1513) 1513 Prototype IDs (3) 60 Alien Tech Used (0) 0 Bonus (8) 8 TOTAL SCORE: 4186 Bonus ------- High Alert Combat Kills 8 Cogmind --------- Core Integrity 0/700 Matter 124/300 Energy 26/100 System Corruption 1% Temperature Cool (0) Movement Core (50) Location -7/Factory Parts ------- > --- POWER (1) -------- (None) > --- PROPULSION (4) --- (None) > --- UTILITY (6) ------ Improved Signal Interpreter Targeting Computer Transmission Jammer > --- WEAPON (2) ------- (None) > --- INVENTORY (5) ---- Fission Core Improved Sensor Array Gatling Laser Peak State ------------ > --- POWER ------------ Fission Core > --- PROPULSION ------- Aluminum Leg Aluminum Leg Gravmag System Gravmag System > --- UTILITY ---------- Medium Storage Unit Improved Sensor Array Signal Interpreter Targeting Computer Transmission Jammer Hardened Medium Armor Plating > --- WEAPON ----------- Advanced Beam Cannon Gauss Cannon > --- INVENTORY -------- Fission Core Fission Core Improved Sensor Array ECM Suite EM Pulse Cannon Enhanced Autogun Gauss Cannon [Rating: 37] Favorites ----------- Power Light Ion Engine Engine Light Ion Engine Power Core Fission Core Propulsion Aluminum Leg Treads Light Treads Leg Aluminum Leg Hover Unit Gravmag System Utility Medium Storage Unit Device Improved Sensor Array Storage Medium Storage Unit Processor Signal Interpreter Protection Core Shielding Weapon Enhanced Autogun Energy Gun EM Pulse Gun Energy Cannon Advanced Beam Cannon Ballistic Gun Enhanced Autogun Ballistic Cannon Light Cannon Build | -11 -10 -9 -8 -7 ------- Run | Yrd Mat Mat Mat Fac Slots Evolved 6 | . . 2 2 2 Power . | . . . . . Propulsion 2 | . . 1 1 . Utility 4 | . . 1 1 2 Weapon . | . . . . . Parts Attached 59 | 6 7 26 5 15 Power 10 | 1 2 3 2 2 Engine 8 | 1 2 3 2 . Core 2 | . . . . 2 Reactor . | . . . . . Propulsion 19 | 2 1 13 1 2 Treads 2 | . . 2 . . Leg 15 | 2 1 11 1 . Wheel . | . . . . . Hover 2 | . . . . 2 Flight . | . . . . . Utility 16 | 1 2 4 2 7 Device 7 | . 1 1 1 4 Storage 2 | 1 1 . . . Processor 4 | . . 1 1 2 Hackware . | . . . . . Protection 3 | . . 2 . 1 Artifact . | . . . . . Weapon 14 | 2 2 6 . 4 Energy Gun 2 | 1 . 1 . . Energy Cannon 3 | . . 2 . 1 Ballistic Gun 6 | 1 1 3 . 1 Ballistic Cannon 3 | . 1 . . 2 Launcher . | . . . . . Special Weapon . | . . . . . Impact Weapon . | . . . . . Slashing Weapon . | . . . . . Piercing Weapon . | . . . . . Special Melee Weapon . | . . . . . Unidentified Prototypes 3 | . . 3 . . Parts Lost 31 | . 3 8 . 20 Power 3 | . . 1 . 2 Propulsion 10 | . 1 3 . 6 Utility 8 | . . 1 . 7 Weapon 10 | . 2 3 . 5 Highest Loss Streak 12 | . 2 4 . 12 To Critical Strikes . | . . . . . Average Slot Usage (%) 91 | . 93 88 100 85 Engine 9 | . 13 10 9 2 Leg 27 | . 27 24 36 22 Device 8 | . 4 9 9 13 Storage 12 | . 19 11 9 6 Processor 8 | . . 3 18 16 Protection 1 | . . 6 . . Energy Gun 2 | . 8 . . . Energy Cannon 3 | . . 1 9 5 Ballistic Gun 12 | . 17 16 9 4 Ballistic Cannon 1 | . 1 3 . 2 Naked Turns . | . . . . . Heaviest Build 41 | 11 21 30 27 41 Greatest Support 40 | 20 20 40 40 40 Greatest Overweight (x) 12 | 2 1 2 . 12 Average Overweight (x) . | . . . . . Largest Inventory Capacity 10 | 8 10 10 10 10 Average Capacity 9 | 7 9 10 10 9 Most Carried 10 | 6 10 10 10 10 Average Carried 8 | 2 8 9 9 8 Final Capacity 10 | 8 10 10 10 5 Final Carried 10 | 6 9 10 10 3 Class Distribution -------------------- 43% | Mutant 26% | Scavenger-Skirmisher 25% | Scavenger-Mutant 4% | Infiltrator-Mutant Dominant Class ---------------- Mutant | -10/Materials Scavenger-Mutant | -9/Materials Scavenger-Skirmisher | -8/Materials Scavenger-Skirmisher | -7/Factory Resources | -11 -10 -9 -8 -7 ----------- Run | Yrd Mat Mat Mat Fac Matter Collected 1198 | 241 148 546 137 126 Remotely . | . . . . . Salvage Created 1768 | . 355 728 191 494 Parts 125 | . 22 54 22 27 Haulers Intercepted 2 | . 1 1 . . Recyclers Shooed . | . . . . . Parts Field Recycled . | . . . . . Retrieved Matter . | . . . . . Parts Self-Destructed . | . . . . . Prevented . | . . . . . Kills | -11 -10 -9 -8 -7 ------- Run | Yrd Mat Mat Mat Fac Combat Hostiles Destroyed 38 | . 8 18 6 6 Guns 26 | . 6 16 3 1 Cannons 10 | . 2 2 3 3 AOE 2 | . . . . 2 Classes Destroyed 10 | . 5 3 . 2 Worker 12 | . 2 1 . 9 Builder 3 | . . 1 . 2 Hauler 2 | . 1 1 . . Recycler 3 | . 1 . . 2 Operator 1 | . . . . 1 Watcher 2 | . . 1 1 . Swarmer 14 | . 6 4 4 . Grunt 17 | . 2 12 . 3 Sentry 5 | . . 2 2 1 Programmer 2 | . . . . 2 Best Kill Streak 12 | . 4 10 3 12 Combat Bots Only 8 | . 3 8 3 2 Max Kills in Single Turn 6 | . 2 2 1 6 Gunslinging 1 | . 1 1 . . Exploded 1 | . . . . 1 Melee . | . . . . . Uniques/NPCs Destroyed . | . . . . . Combat | -11 -10 -9 -8 -7 -------- Run | Yrd Mat Mat Mat Fac Hostile Shots Fired 405 | . 63 164 26 152 Missed 112 | . 16 42 7 47 Damage Taken 4177 | . 511 1305 202 2159 Core 1013 | . 82 181 37 713 Absorbed by Shields . | . . . . . Redirected to Shielding 26 | . . 26 . . Core Remaining (%) 78 | 100 67 54 93 . Volleys Fired 123 | . 32 47 18 26 Largest 2 | . 2 2 2 2 Hottest 116 | . 60 58 93 116 Shots Fired 234 | . 59 92 36 47 Gun 156 | . 51 80 18 7 Cannon 78 | . 8 12 18 40 Launcher . | . . . . . Special . | . . . . . Kinetic 187 | . 48 92 18 29 Thermal 34 | . . . 18 16 Explosive . | . . . . . Electromagnetic 13 | . 11 . . 2 Robot Hit Streak 14 | . 5 13 9 14 Robot Miss Streak 6 | . 6 5 3 5 Penetration Max . | . . . . . Secondary Targets 9 | . 2 7 . . Max Gunslinging Chain 1 | . 1 1 . . Shots Hit Robots 142 | . 31 58 21 32 Core Hits 84 | . 16 30 9 29 Critical Kills 1 | . . . 1 . Critical Parts Destroyed . | . . . . . Critical Strikes 11 | . 4 2 1 4 Destroy 1 | . . . 1 . Blast 10 | . 4 2 . 4 Melee Attacks . | . . . . . Impact . | . . . . . Slashing . | . . . . . Piercing . | . . . . . Sneak Attacks . | . . . . . Combat Hostiles . | . . . . . Follow-up Attacks . | . . . . . Damage Inflicted 3868 | . 371 1114 393 1990 Guns 1466 | . 232 959 186 89 Cannons 1240 | . 123 145 205 767 Explosions 1134 | . . . . 1134 Melee . | . . . . . Ramming 28 | . 16 10 2 . Kinetic 2085 | . 285 1104 186 510 Thermal 498 | . . . 205 293 Explosive 1076 | . . . . 1076 Electromagnetic 181 | . 70 . . 111 Impact . | . . . . . Slashing . | . . . . . Piercing . | . . . . . Highest Corruption 1 | . . . . 1 Average Corruption 1 | . . . . 1 Corruption Purged . | . . . . . Corruption Blocked . | . . . . . Effects 2 | . . . . 2 Matter Fused 1 | . . . . 1 Misfires 1 | . . . . 1 Overload Shots . | . . . . . Overflow Damage 140 | . . . . 140 Projectiles 30 | . . . . 30 Explosions 110 | . . . . 110 Melee . | . . . . . Knockbacks 8 | . 1 4 . 3 Impact . | . . . . . Kinetic 8 | . 1 4 . 3 Secondary . | . . . . . Self-Inflicted Damage 287 | . . . . 287 Shots 4 | . . . . 4 Rammed . | . . . . . Targets Rammed 11 | . 8 2 1 . Kicked 11 | . 8 2 1 . Crushed . | . . . . . Highest Temperature 547 | . 72 106 135 547 Average Temperature 91 | . 23 22 62 204 Received Heat Transfer 1101 | . 159 540 45 357 Effects 7 | . . . . 7 Shutdowns 2 | . . . . 2 Energy Bleed 1 | . . . . 1 Matter Decay 2 | . . . . 2 Damage (major) 1 | . . . . 1 Damage (core) 1 | . . . . 1 Siege Activations . | . . . . . Robots Corrupted . | . . . . . Combat Hostiles . | . . . . . Parts Fried . | . . . . . Impact Corruptions . | . . . . . Robots Melted . | . . . . . Combat Hostiles . | . . . . . Parts Melted . | . . . . . Heat Transferred 851 | . . . 370 481 Parts Sabotaged . | . . . . . Parts Stolen . | . . . . . Parts Stripped . | . . . . . Power Chain Reactions . | . . . . . Alert | -11 -10 -9 -8 -7 ------- Run | Yrd Mat Mat Mat Fac Peak Influence 580 | . 99 404 345 580 Initial 170 | . . 29 170 98 Average 144 | . 48 250 232 112 Maximum Alert Level 2 | . . 2 1 2 Low Security (%) 70 | 100 100 33 30 96 Level 1 24 | . . 47 69 . Level 2 5 | . . 19 . 2 Level 3 . | . . . . . Level 4 . | . . . . . Level 5 . | . . . . . High Security . | . . . . . Max Security . | . . . . . Squads Dispatched 9 | . 1 5 . 3 Investigation 2 | . . 2 . . Extermination 1 | . . . . 1 Reinforcement 6 | . 1 3 . 2 Assault . | . . . . . Garrison . | . . . . . Intercept . | . . . . . Searches Triggered . | . . . . . Construction Impeded . | . . . . . Haulers Reinforced 1 | . . . . 1 Active Scanning Responses . | . . . . . Cargo Convoy Interrupts . | . . . . . Stealth | -11 -10 -9 -8 -7 --------- Run | Yrd Mat Mat Mat Fac Distress Signals 5 | . 1 3 1 . Communications Jammed 1 | . . . . 1 Distress Signals 1 | . . . . 1 Times Spotted 64 | . 13 28 9 14 Peak Tracking Total 7 | . 4 7 3 5 Tactical Retreats 4 | . . 2 . 2 Traps | -11 -10 -9 -8 -7 ------- Run | Yrd Mat Mat Mat Fac Traps Triggered 3 | . 2 1 . . Indirectly . | . . . . . Trap Hack Attempts . | . . . . . Triggered . | . . . . . Disarmed . | . . . . . Reprogrammed . | . . . . . Reused . | . . . . . Traps Extracted . | . . . . . Installed . | . . . . . Triggered . | . . . . . Machines | -11 -10 -9 -8 -7 ---------- Run | Yrd Mat Mat Mat Fac Machines Disabled 27 | . . 1 . 26 Max in Single Turn 18 | . . 1 . 18 Machines Repaired . | . . . . . Machines Dismantled . | . . . . . Machines Sabotaged . | . . . . . Overloaded Fab Kills . | . . . . . Hacking | -11 -10 -9 -8 -7 --------- Run | Yrd Mat Mat Mat Fac Machines Accessed 13 | . 6 1 3 3 Terminals 11 | . 5 1 3 2 Fabricators 1 | . . . . 1 Repair Stations . | . . . . . Recycling Units 1 | . 1 . . . Scanalyzers . | . . . . . Garrison Access . | . . . . . Total Hacks 31 | . 16 2 6 7 Successful 8 | . 6 . . 2 Failed 23 | . 10 2 6 5 Catastrophic 3 | . 2 1 . . Database Lockouts . | . . . . . Manual 14 | . 8 2 1 3 Terminals 27 | . 13 2 6 6 Fabricators 1 | . . . . 1 Repair Stations . | . . . . . Recycling Units 3 | . 3 . . . Scanalyzers . | . . . . . Garrison Access . | . . . . . Terminal Hacks 6 | . 4 . . 2 Record 1 | . . . . 1 Locate Traps 2 | . 2 . . . Dispatch Records 2 | . 2 . . . Zone Layout 1 | . . . . 1 Fabricator Hacks . | . . . . . Repair Station Hacks . | . . . . . Recycling Unit Hacks 1 | . 1 . . . Report Inventory 1 | . 1 . . . Scanalyzer . | . . . . . Garrison Access Hacks . | . . . . . Unauthorized Hacks 1 | . 1 . . . Terminals . | . . . . . Fabricators . | . . . . . Repair Stations . | . . . . . Recycling Units 1 | . 1 . . . Monitor 1 | . 1 . . . Scanalyzers . | . . . . . Garrison Access . | . . . . . Data Cores Recovered . | . . . . . Used . | . . . . . Hacking Detections 13 | . 6 1 3 3 Full Trace Events 1 | . . 1 . . Feedback Events . | . . . . . Feedback Blocked . | . . . . . Robot Schematics Acquired . | . . . . . Robots Built . | . . . . . Authchips . | . . . . . Time . | . . . . . Total Robot Build Rating . | . . . . . Part Schematics Acquired . | . . . . . Parts Built . | . . . . . Authchips . | . . . . . Time . | . . . . . Total Part Build Rating . | . . . . . Parts Repaired . | . . . . . Time . | . . . . . Parts Recycled . | . . . . . Recycled Matter . | . . . . . Retrieved Matter . | . . . . . Retrieved Components . | . . . . . Parts Scanalyzed . | . . . . . Part Schematics Acquired . | . . . . . Parts Damaged . | . . . . . Bothacking | -11 -10 -9 -8 -7 ------------ Run | Yrd Mat Mat Mat Fac Used RIF Installer . | . . . . . Robots Hacked . | . . . . . Non-combat . | . . . . . Combat . | . . . . . Robot Hacks Applied . | . . . . . Relay Couplers Released . | . . . . . Fabnet Peak Effective % . | . . . . . Robots Rewired . | . . . . . Allies Hacked . | . . . . . Hacks Repelled . | . . . . . Allies | -11 -10 -9 -8 -7 -------- Run | Yrd Mat Mat Mat Fac Total Allies . | . . . . . Largest Group . | . . . . . Highest-Rated Group . | . . . . . Highest-Rated Ally . | . . . . . Total Orders . | . . . . . Ally Attacks . | . . . . . Total Damage . | . . . . . Kills . | . . . . . Allies Corrupted . | . . . . . Allies Melted . | . . . . . Intel | -11 -10 -9 -8 -7 ------- Run | Yrd Mat Mat Mat Fac Robot Analysis Total . | . . . . . Derelict Logs Recovered . | . . . . . Drone Launches . | . . . . . Drone Recoveries . | . . . . . Exploration | -11 -10 -9 -8 -7 ------------- Run | Yrd Mat Mat Mat Fac Turns Passed 3012 | 79 992 722 567 652 Spaces Moved 1642 | 52 468 369 337 416 Core 20 | 9 . . . 11 Treads 5 | . . 5 . . Legs 1583 | 43 468 364 337 371 Wheels . | . . . . . Hover 34 | . . . . 34 Flight . | . . . . . Fastest Speed 50 | 50 120 120 120 50 Average Speed 129 | 115 127 138 120 131 Slowest Speed 650 | 150 190 260 120 650 Overloaded Moves . | . . . . . Propulsion Burnouts . | . . . . . Robots Hopped . | . . . . . Cave-ins Triggered . | . . . . . Exploration Rate (%) 28 | 4 62 34 27 15 Regions Visited 4 Branch Regions . Pre-discovered Areas . | . . . . . Known Exits Taken 2 | . . 1 1 . Unknown Exits Taken 2 | 1 1 . . . Scrap Searched . | . . . . . Spaces Dug . | . . . . . Terrain Destroyed 110 | . . . . 110 Melee . | . . . . . Projectile 7 | . . . . 7 AOE 103 | . . . . 103 Terrain Rammed . | . . . . . Walls Destroyed . | . . . . . Machines Disabled . | . . . . . Actions | -11 -10 -9 -8 -7 --------- Run | Yrd Mat Mat Mat Fac Total 2343 | 68 808 513 474 480 Wait 433 | 5 282 41 100 5 Move 1638 | 51 467 368 336 416 Hop . | . . . . . Pick Up 43 | 6 9 13 7 8 Fast Attach 18 | 6 1 6 . 5 Attach 23 | . 5 7 3 8 Detach 1 | . . . . 1 Swap 18 | . 1 13 2 2 Drop 35 | . 3 16 7 9 Fire 123 | . 32 47 18 26 Melee . | . . . . . Ram . | . . . . . Kick 11 | . 8 2 1 . Crush . | . . . . . Escape Stasis . | . . . . . Rewire . | . . . . . Trap . | . . . . . Miscellaneous . | . . . . . Route ------- -11/Scrapyard -10/Materials (discovered 2 exits: *Mat / [*Min]) -9/Materials -8/Materials -7/Factory History --------- Turn | Location | Event 26 | -11/Scrapyard | Discovered new exit (range 15) 80 | -11/Scrapyard | Entered Materials 309 | -10/Materials | Build established: Mutant 737 | -10/Materials | Discovered new exit (range 16) 980 | -10/Materials | Discovered new exit (range 16) 1072 | -10/Materials | Entered another Materials area 1072 | -9/Materials | Evolved 2 slots: Propulsion x1, Utility x1 1328 | -9/Materials | Lost 4 parts (1p1n2w) 1335 | -9/Materials | Destroyed 8 combat bots 1581 | -9/Materials | Build established: Scavenger-Mutant 1766 | -9/Materials | Discovered new exit (range 5) 1770 | -9/Materials | Identified exit to Materials 1794 | -9/Materials | Entered another Materials area 1794 | -8/Materials | Evolved 2 slots: Propulsion x1, Utility x1 2320 | -8/Materials | Discovered new exit (range 4) 2325 | -8/Materials | Identified exit to Factory 2340 | -8/Materials | Build established: Scavenger-Skirmisher 2361 | -8/Materials | Entered Factory 2361 | -7/Factory | Evolved 2 slots: Utility x2 2912 | -7/Factory | Core integrity fell below 50% 2956 | -7/Factory | Lost 12 parts (1p5n4u2w) 3002 | -7/Factory | Core integrity fell below 20% 3013 | -7/Factory | Destroyed by H-55 Commando with Gauss Rifle Last Messages --------------- 02993_ K-01 Serf collects debris. 02994_ Nuclear Reactor explodes. 02994_ K-01 Serf destroyed. 02994_ Neutrino Reactor explodes. 02994_ Nuclear Reactor explodes. 02994_ Matter Pump disabled. 02994_ K-01 Serf destroyed. [Achievement: It Was An Accident, I Swear] 02994_ Destroyed Lgt. Ion Engine. 02994_ U-05 Engineer destroyed. 02996_ Nuclear Reactor explodes. 02999_ Enh. Autogun destroyed. 03000_ The unstable cave ceiling collapses. 03002_ Penetrated by Slug. 03007_ Med. Storage Unit destroyed. 03007_ Knocked back. 03008_ Penetrated by Slug. 03009_ Component Analysis Suite destroyed. 03009_ ECM Suite destroyed. 03013_ Penetrated by Slug. Map ----- +----------------------------------------------------+ | # % = = ? ????????????????????? | | # %*%! ? ????????????????????? | | # =# #??? ?????????????????????? | | " #??? #?????????????????????? | | # # #??# #?????????????????????? | | ## ####?? #??" #?????????????????????? | | ?## # ########+##/###" #?????????????????????? | | ?### ## #?????????????????????? | | ???##### ## ###???????????????????? | | ??????## " " # ########????????????? | | ???????# ]]* " " ????????????? | | ???????# ]]* " " % ???????????? | | ???????# ]* " "m % ???????????? | | ???????# " " "???????????? | | ???????# " " h % " ??????????? | | ???????# " "% ??????????? | | ???????# " " % ?????????? | | ???????# " " ?????????? | | ???????# # ????????? | | ???????############# % ????????? | | ???????????????????# ????????? | | ???????????????????# ????????? | | ???????????????????# ????????? | | ???????????????????# ????????? | | ???????????????????## ????????? | | ????????????????????# @ ????????? | | ????????????????????# ????????? | | ????????????????????# ????????? | | ????????????????????#""" ?????????? | | ????????????????????#"F" """ ?????????? | | ????????????????????#" """ ??????????? | | ????????????????????#""" """?? ???????????? | | ????????????????????#""" w ??????????????? | | ????????????????????? ??????????????? | | ?????????????????????? ?????????????? | | ??????????????????????#### ######????????????? | | ?????????????????????????? ?????????????????? | | ?????????????????????????? ?????????????????? | | ??????????????????????????"""" ""????????????????? | | ??????????????????????????""?????????????????????? | | ?????????????????????????????????????????????????? | | ?????????????????????????????????????????????????? | | ?????????????????????????????????????????????????? | | ?????????????????????????????????????????????????? | | ?????????????????????????????????????????????????? | | ?????????????????????????????????????????????????? | | ?????????????????????????????????????????????????? | | ?????????????????????????????????????????????????? | | ?????????????????????????????????????????????????? | | ?????????????????????????????????????????????????? | +----------------------------------------------------+ Best States ------------- Heat Dissipation 34 Energy Generation 18 Energy Capacity 310 Matter Stores 300 Matter Capacity 300 Sight Range 20 Robot Scan Range 15 Terrain Scan Range 14 Terrain Scan Density 10 ECM Strength 1 Jamming Range 12 Armor Coverage 225 Core Shielding 20 Evasion (%) 55 Targeting Accuracy 5 Recoil Reduction 2 Item Schematics ----------------- None Robot Schematics ------------------ None Fabricated ------------ Nothing Alien Tech Used ----------------- None Achievements -------------- It Was An Accident, I Swear Challenges ------------ None Game ------ Seed RestorationDispersionMatter Manual? 0 Play Time 00:39:31 Cumulative 13.9 hours Start 2024.04.19 @ 14:35:00 End 2024.04.21 @ 11:36:43 Sessions 7 Manual Loads 0 Difficulty Rogue Special Mode None Game No. 12 Rogue 12 Adventurer 0 Explorer 0 Win Type - Total 0 Types 0/0/0/0/0/0/0/0/0 Lore% 17 Gallery% 19 Achievement% 17 Wizard Run 0 Options --------- Layout 1 ASCII 0 Keyboard 0 Movement Mouse Keybinds 0 Fullscreen 1 Font 24/Smallcaps Map View 50x35 Zoom Use 0% Tactical HUD 1 Map Filters NONE Filters NONE Steam 1 RUN: 1aaa5dc5-4ec2-4314-9c9f-733304320f55